bitfinex/quotes_ETHUSD_20250210
["timestamp","ask_amount","ask_price","bid_price","bid_amount"]
[1739184568217,0.8281,2652.1,2652.0,3.77073]
[1739184568380,3.76997,2652.6,2652.0,5.95715331]
[1739184568589,3.7697,2652.8,2652.0,2.18642331]
[1739184568590,3.77042,2652.3,2652.0,2.18642331]
[1739184568782,3.77022,2652.4,2652.0,2.18642331]
[1739184569178,3.77031,2652.3,2652.0,2.18642331]
[1739184569384,3.77031,2652.3,2651.3,9.24312]
[1739184569385,3.77046,2652.2,2651.7,2.18642331]
[1739184570717,3.77045,2652.2,2651.7,2.18642331]
[1739184571492,3.77061,2652.1,2651.7,2.18642331]
[1739184571818,3.77061,2652.1,2651.6,3.77129]
[1739184572023,3.0,2652.3,2651.6,3.77129]
[1739184572223,3.77045,2652.2,2651.6,3.77129]
[1739184573399,3.0,2652.3,2651.8,3.7709]
[1739184573615,4.5982,2652.5,2651.9,3.77077]
[1739184573910,3.77017,2652.4,2651.9,3.77077]
[1739184574223,7.54043,2652.4,2651.7,6.45496538]
[1739184574437,3.77017,2652.4,2651.7,6.45496538]
[1739184575507,6.77007,2652.5,2651.9,3.77079]
[1739184575898,3.0,2652.6,2652.0,6.45459538]
[1739184576142,3.0,2652.7,2652.2,3.77044]
[1739184577517,0.804,2652.9,2652.4,3.7701]
[1739184577830,4.51531105,2653.2,2652.7,3.76962]
[1739184578033,4.51531105,2653.2,2652.6,2.68388538]
[1739184578034,3.0,2653.1,2652.6,2.68388538]
[1739184578210,6.76925,2653.1,2652.7,0.07552544]
[1739184578593,3.0,2653.1,2652.7,0.07552544]
[1739184580012,0.005,2653.4,2653.1,3.76909]
[1739184580215,0.005,2653.4,2653.2,0.07435929]
[1739184580736,0.005,2653.4,2653.2,2.75824467]
[1739184582393,4.56483,2653.4,2653.2,0.07435929]
[1739184582603,4.56483,2653.4,2652.9,6.45325538]
[1739184582900,3.76891,2653.3,2653.0,0.07033581]
[1739184584322,3.796,2653.4,2653.0,0.07033581]
[1739184584502,3.005,2653.4,2653.0,0.07033581]
[1739184584925,0.005,2653.4,2653.0,0.07033581]
[1739184586029,0.005,2653.4,2653.0,3.83963581]
[1739184586211,0.005,2653.4,2653.1,3.76912]
[1739184586405,0.005,2653.4,2653.2,0.07030867]
[1739184586634,0.005,2653.4,2653.3,3.76889]
[1739184586836,0.005,2653.4,2653.2,6.52314405]
[1739184587026,0.005,2653.4,2653.3,0.0702951]
[1739184587200,0.005,2653.4,2653.2,6.45283538]
[1739184587396,0.005,2653.4,2653.3,0.0702951]
[1739184587601,0.005,2653.4,2653.2,2.68388538]
[1739184587913,0.005,2653.4,2653.3,0.0702951]
[1739184588112,0.005,2653.4,2653.2,2.68388538]
[1739184588335,0.005,2653.4,2653.3,0.0702951]
[1739184588502,0.005,2653.4,2653.2,2.68388538]
[1739184588697,0.005,2653.4,2653.3,0.0702951]
[1739184588926,0.005,2653.4,2653.0,7.53845]
[1739184589135,0.005,2653.4,2653.3,0.0702951]
[1739184589634,0.005,2653.4,2653.1,3.7691]
[1739184589801,0.005,2653.4,2653.0,7.53844]
[1739184590137,0.005,2653.4,2653.1,0.07032224]
[1739184590532,3.76897,2653.3,2652.9,2.68388538]
[1739184590836,3.76897,2653.3,2652.8,0.38312]
[1739184591007,3.76935,2653.0,2652.9,0.07034938]
[1739184591207,4.56024,2653.1,2652.9,0.07034938]
[1739184591904,0.791,2653.1,2652.9,0.07034938]
[1739184593135,3.76931,2653.0,2652.9,0.07034938]
[1739184593338,3.76931,2653.0,2652.6,2.68388538]
[1739184593634,4.56019,2653.1,2652.6,2.17907988]
[1739184593840,3.76942,2653.0,2652.7,0.07101181]
[1739184596144,3.7696,2652.8,2652.7,0.07101181]
[1739184597927,0.791,2653.1,2652.7,0.07101181]
[1739184597928,3.76941,2653.0,2652.7,0.07101181]
[1739184598647,4.56031,2653.1,2652.7,0.07101181]
[1739184598648,3.76946,2652.9,2652.7,0.07101181]
[1739184599746,4.56031,2653.1,2652.7,0.07101181]
[1739184599941,3.76932,2653.0,2652.7,0.07101181]
[1739184600149,3.7696,2652.9,2652.7,0.07101181]
[1739184600713,3.76932,2653.0,2652.7,0.07101181]
[1739184600914,3.7696,2652.8,2652.7,0.07101181]
[1739184601146,3.76993,2652.6,2652.2,0.38312]
[1739184601315,3.77014,2652.5,2652.2,0.38312]
[1739184602262,3.76993,2652.6,2652.2,0.38312]
[1739184602430,3.76993,2652.6,2652.3,2.17907988]
[1739184603039,3.77009,2652.5,2652.3,2.17907988]
[1739184603348,7.53989,2652.6,2652.3,2.17907988]
[1739184603974,3.76988,2652.6,2652.3,2.17907988]
[1739184604267,4.55167,2652.8,2652.4,3.77014]
[1739184604564,6.76954,2652.9,2652.6,2.17907988]
[1739184604859,3.76954,2652.9,2652.6,2.17907988]
[1739184605360,3.76954,2652.9,2652.3,3.77021]
[1739184605361,3.76981,2652.7,2652.3,2.17907988]
[1739184605537,3.7696,2652.8,2652.3,2.17907988]
[1739184605745,3.7696,2652.8,2652.3,5.94933988]
[1739184606559,5.32430709,2653.0,2652.6,2.17907988]
[1739184606860,4.55113,2653.2,2652.6,5.94893988]
[1739184607068,3.0,2653.1,2652.6,5.94893988]
[1739184607433,6.76919,2653.1,2652.6,5.94893988]
[1739184607933,6.76919,2653.1,2652.7,0.07165383]
[1739184608542,6.76919,2653.1,2652.7,3.84127383]
[1739184608543,3.0,2653.1,2652.7,3.84127383]
[1739184609177,0.005,2653.4,2653.2,3.76903]
[1739184609377,0.005,2653.4,2653.3,5.94796988]
[1739184609538,0.005,2653.4,2653.3,6.01931531]
[1739184611655,0.005,2653.4,2653.3,3.87791585]
[1739184613371,0.005,2653.4,2653.3,3.84023543]
[1739184613785,3.8959343,2654.6,2653.3,9.35214713]
[1739184614075,0.1288143,2654.6,2654.2,2.17907988]
[1739184614261,6.76722,2654.5,2654.2,2.17907988]
[1739184614464,3.0,2654.5,2654.3,0.07063939]
[1739184614667,3.0,2654.5,2654.2,2.17907988]
[1739184614975,3.0,2654.5,2654.3,0.07045798]
[1739184615374,3.0,2654.5,2654.2,2.17907988]
[1739184615575,3.0,2654.5,2654.4,0.07044442]
[1739184615754,3.0,2654.5,2654.3,0.07045798]
[1739184615957,3.0,2654.5,2654.4,0.07044442]
[1739184616361,3.0,2654.5,2654.2,5.94664988]
[1739184616545,3.0,2654.5,2654.4,0.07044442]
[1739184616746,3.0,2654.5,2654.3,0.07045798]
[1739184616948,3.7672,2654.5,2654.4,0.07044442]
[1739184617148,3.7672,2654.5,2654.2,2.17907988]
[1739184617347,3.7672,2654.5,2654.4,0.07044442]
[1739184617545,3.1288143,2654.6,2654.3,0.07045798]
[1739184617852,3.76718,2654.5,2654.4,0.07044442]
[1739184618075,3.1288143,2654.6,2654.2,2.17907988]
[1739184618270,3.8958743,2654.6,2654.3,0.07045798]
[1739184618459,6.8958743,2654.6,2654.2,2.17907988]
[1739184618662,3.1288143,2654.6,2654.2,2.17907988]
[1739184618876,3.76719,2654.5,2654.3,0.06896732]
[1739184619078,3.1288143,2654.6,2654.2,2.17907988]
[1739184619282,3.1288143,2654.6,2654.3,0.06896732]
[1739184619481,3.1288143,2654.6,2654.2,2.17907988]
[1739184619681,3.76721,2654.5,2654.2,2.17907988]
[1739184619981,3.76721,2654.5,2654.3,0.06896732]
[1739184620480,3.76721,2654.5,2654.4,0.06895376]
[1739184620724,3.76721,2654.5,2654.2,2.17907988]
[1739184620983,3.1288143,2654.6,2654.4,0.06895376]
[1739184621181,0.1288143,2654.6,2654.5,2.17907988]
[1739184621383,0.1288143,2654.6,2654.5,6.01520008]
[1739184621880,0.1288143,2654.6,2654.5,3.8361202]
[1739184622288,0.1288143,2654.6,2654.5,0.0689402]
[1739184623689,0.1288143,2654.6,2654.5,3.8361202]
[1739184623987,0.1288143,2654.6,2654.5,0.0689402]
[1739184624156,0.1288143,2654.6,2654.5,3.8361202]
[1739184626159,0.1288143,2654.6,2654.5,4.2192402]
[1739184631977,0.1288143,2654.6,2654.5,0.4520602]
[1739184632194,3.8958543,2654.6,2654.5,0.0689402]
[1739184632386,4.7279543,2654.6,2654.5,0.10744608]
[1739184632589,0.9609143,2654.6,2654.5,0.10744608]
[1739184633094,4.7279543,2654.6,2654.5,0.10744608]
[1739184640274,7.7279543,2654.6,2654.5,0.10744608]
[1739184643606,4.55421,2654.2,2654.1,2.17907988]
[1739184643900,4.55421,2654.2,2654.1,0.1058032]
[1739184644101,3.76797,2654.0,2653.8,2.17907988]
[1739184644303,3.76803,2653.9,2653.8,2.17907988]
[1739184650479,3.76832,2653.8,2653.5,2.56219988]
[1739184651182,3.76839,2653.7,2653.5,2.56219988]
[1739184651387,3.76839,2653.7,2653.5,2.17907988]
[1739184651589,7.5368,2653.7,2653.5,2.17907988]
[1739184651790,3.76839,2653.7,2653.5,2.17907988]
[1739184652174,3.76846,2653.6,2653.5,2.17907988]
[1739184652380,3.76883,2653.4,2653.2,2.17907988]
[1739184652600,3.76889,2653.3,2653.2,2.17907988]
[1739184653003,3.76889,2653.3,2653.2,2.28546628]
[1739184654307,7.53757,2653.4,2653.2,2.28546628]
[1739184654514,3.76874,2653.4,2653.2,2.28546628]
[1739184654713,3.76889,2653.3,2653.2,2.28546628]
[1739184655514,3.76862,2653.5,2653.2,2.28546628]
[1739184656613,3.76876,2653.4,2653.2,2.28546628]
[1739184656807,3.76889,2653.3,2653.2,2.28546628]
[1739184660218,3.76876,2653.4,2653.2,2.28546628]
[1739184660435,3.0,2653.5,2653.2,2.28546628]
[1739184660649,3.76889,2653.3,2653.2,2.28546628]
[1739184668511,3.76882,2653.4,2653.2,2.28546628]
[1739184668828,3.76889,2653.3,2653.2,2.28546628]
[1739184682945,6.76889,2653.3,2653.2,0.1063864]
[1739184683118,7.53299,2653.3,2653.2,0.1063864]
[1739184683319,3.76974,2652.7,2652.6,2.17907988]
[1739184683834,3.76974,2652.7,2652.6,0.09998887]
[1739184684040,6.76974,2652.7,2652.6,0.09998887]
[1739184684441,7.53427,2652.4,2652.3,2.17907988]
[1739184684649,7.53427,2652.4,2652.0,2.17907988]
[1739184684846,7.53427,2652.4,2652.3,0.10020287]
[1739184685038,3.77053,2652.2,2652.0,2.17907988]
[1739184685235,3.77059,2652.1,2652.0,2.17907988]
[1739184685458,3.77092,2651.9,2651.7,2.17907988]
[1739184688883,3.77102,2651.8,2651.7,2.17907988]
[1739184689028,3.77092,2651.9,2651.7,2.17907988]
[1739184689360,3.77102,2651.8,2651.7,2.17907988]
[1739184689557,3.77092,2651.9,2651.7,2.17907988]
[1739184690380,0.7641,2652.2,2651.7,2.17907988]
[1739184690381,3.77046,2652.2,2651.7,2.17907988]
[1739184690525,3.77045,2652.2,2652.0,2.17907988]
[1739184691031,3.77045,2652.2,2652.1,0.10023318]
[1739184691229,4.52427206,2652.4,2652.1,0.10023318]
[1739184691230,3.0,2652.3,2652.1,0.10023318]
[1739184691666,3.0,2652.3,2652.0,2.17907988]
[1739184691964,3.0,2652.3,2652.1,0.10023318]
[1739184692734,6.77033,2652.3,2652.1,0.10023318]
[1739184692930,3.0,2652.3,2652.1,0.10023318]
[1739184693862,6.77039,2652.3,2652.1,0.10023318]
[1739184694057,3.77045,2652.2,2652.1,0.10023318]
[1739184694363,6.77031,2652.3,2652.1,0.10023318]
[1739184694569,3.0,2652.3,2652.1,0.10023318]
[1739184694735,3.77045,2652.2,2652.1,0.10023318]
[1739184696037,3.0,2652.3,2652.1,0.10023318]
[1739184696230,6.77037,2652.3,2652.1,0.10023318]
[1739184697075,3.0,2652.3,2652.1,3.87073318]
[1739184697646,4.53378,2652.8,2652.2,3.77045]
[1739184697854,4.53378,2652.8,2652.5,2.17907988]
[1739184698164,6.76974,2652.7,2652.6,0.10170106]
[1739184698470,3.76974,2652.7,2652.6,0.10170106]
[1739184699269,3.76961,2652.8,2652.6,0.10170106]
[1739184699587,3.0,2652.7,2652.6,0.10170106]
[1739184700471,3.76913,2653.2,2652.7,3.76969]
[1739184700652,3.76913,2653.2,2653.0,2.17907988]
[1739184700853,3.76884,2653.4,2653.0,2.17907988]
[1739184701053,6.76892,2653.3,2653.1,0.1013788]
[1739184702141,6.76903,2653.2,2653.1,0.1013788]
[1739184702543,3.0,2653.2,2653.1,0.1013788]
[1739184702848,3.0,2653.3,2653.1,0.1013788]
[1739184703052,3.76884,2653.4,2653.1,0.1013788]
[1739184703778,3.0,2653.3,2653.1,0.1013788]
[1739184704849,6.76896,2653.3,2653.1,0.1013788]
[1739184705377,3.0,2653.3,2653.1,0.1013788]
[1739184705754,6.76889,2653.3,2653.1,0.1013788]
[1739184707079,3.76903,2653.2,2653.1,0.1013788]
[1739184708248,6.76903,2653.2,2653.1,0.1013788]
[1739184714985,7.52183,2653.2,2653.1,0.1013788]
[1739184715575,3.0,2653.2,2653.1,0.1013788]
[1739184715774,3.76865,2653.5,2653.1,0.1013788]
[1739184716298,6.76875,2653.4,2653.1,0.1013788]
[1739184716495,10.53759,2653.4,2653.1,0.1013788]
[1739184716682,6.76875,2653.4,2653.1,0.1013788]
[1739184716994,3.76898,2653.3,2653.1,0.1013788]
[1739184717993,6.76875,2653.4,2653.1,0.1013788]
[1739184718192,10.53762,2653.4,2653.1,0.1013788]
[1739184718392,6.76875,2653.4,2653.1,0.1013788]
[1739184719795,3.76891,2653.3,2653.1,0.1013788]
[1739184720183,6.76875,2653.4,2653.1,0.1013788]
[1739184720764,10.5376,2653.4,2653.1,0.1013788]
[1739184720993,6.76875,2653.4,2653.1,0.1013788]
[1739184721297,3.76903,2653.2,2653.1,0.1013788]
[1739184721593,6.76903,2653.2,2653.1,0.1013788]
[1739184722972,3.0,2653.2,2653.1,0.1013788]
[1739184723172,0.7528,2653.5,2653.1,0.1013788]
[1739184723173,3.76861,2653.5,2653.1,0.1013788]
[1739184723983,3.0,2653.4,2653.1,0.1013788]
[1739184724369,3.0,2653.4,2653.3,2.17907988]
[1739184724572,4.52086,2653.9,2653.3,2.27642262]
[1739184724805,5.2645584,2653.9,2653.3,2.27642262]
[1739184725004,3.76818,2653.8,2653.3,2.27642262]
[1739184725286,3.0,2653.6,2653.3,2.27642262]
[1739184725863,3.0,2653.6,2653.3,0.09734274]
[1739184725864,3.76874,2653.4,2653.3,0.09734274]
[1739184726064,3.76917,2653.1,2653.0,2.56219988]
[1739184726304,3.76917,2653.1,2653.0,2.17907988]
[1739184726471,3.76917,2653.1,2653.0,2.27646804]
[1739184726664,3.0,2653.2,2653.0,2.27646804]
[1739184727474,3.76868,2653.5,2653.0,6.04575804]
[1739184727774,3.76849,2653.6,2653.3,2.17907988]
[1739184727971,3.76849,2653.6,2653.4,0.09732761]
[1739184728371,0.1288143,2654.6,2654.4,3.76725]
[1739184728573,0.1288143,2654.6,2654.5,2.17907988]
[1739184728785,6.8958643,2654.6,2654.5,2.17907988]
[1739184728994,3.8958643,2654.6,2654.5,2.17907988]
[1739184729620,6.8958643,2654.6,2654.5,2.17907988]
[1739184729822,3.1288143,2654.6,2654.5,2.17907988]
[1739184730795,6.8958543,2654.6,2654.5,2.17907988]
[1739184732725,3.1288143,2654.6,2654.5,2.17907988]
[1739184733120,6.8958543,2654.6,2654.5,2.17907988]
[1739184733922,0.8312,2654.3,2653.9,2.17907988]
[1739184734088,3.76789,2654.0,2653.9,2.17907988]
[1739184734820,3.0,2654.1,2653.9,2.17907988]
[1739184735122,3.0,2654.1,2653.9,2.26792827]
[1739184735512,6.76779,2654.1,2653.9,2.26792827]
[1739184735711,0.8312,2654.3,2653.9,2.26792827]
[1739184735892,3.76789,2654.0,2653.9,2.26792827]
[1739184736213,3.76776,2654.1,2653.9,2.26792827]
[1739184736792,3.76789,2654.0,2653.9,2.26792827]
[1739184736992,7.5356,2654.1,2653.9,2.26792827]
[1739184737425,3.76776,2654.1,2653.9,2.26792827]
[1739184739721,3.76789,2654.0,2653.9,2.26792827]
[1739184739904,7.53561,2654.1,2653.9,2.26792827]
[1739184740108,3.76776,2654.1,2653.9,2.26792827]
[1739184740805,3.0,2654.2,2653.9,2.26792827]
[1739184741126,3.76777,2654.1,2653.9,2.26792827]
[1739184741323,3.76789,2654.0,2653.9,2.26792827]
[1739184741627,3.76777,2654.1,2653.9,2.26792827]
[1739184741928,7.5356,2654.1,2653.9,2.26792827]
[1739184742130,3.76777,2654.1,2653.9,2.26792827]
[1739184742429,3.76789,2654.0,2653.9,2.26792827]
[1739184743226,3.76777,2654.1,2653.9,2.26792827]
[1739184743430,7.53565,2654.1,2653.9,2.26792827]
[1739184743991,3.76777,2654.1,2653.9,2.26792827]
[1739184747798,3.76789,2654.0,2653.9,2.26792827]
[1739184748502,7.53564,2654.1,2653.9,2.26792827]
[1739184748918,3.76777,2654.1,2653.9,2.26792827]
[1739184749100,7.53564,2654.1,2653.9,2.26792827]
[1739184749428,3.76789,2654.0,2653.9,2.26792827]
[1739184750204,7.53564,2654.1,2653.9,2.26792827]
[1739184750403,3.76777,2654.1,2653.9,2.26792827]
[1739184751031,3.76789,2654.0,2653.9,2.26792827]
[1739184752926,7.59909,2654.0,2653.9,0.08884839]
[1739184753126,8.14909,2654.0,2653.9,0.08884839]
[1739184753455,8.32837,2653.3,2653.0,2.17907988]
[1739184753626,8.32835,2653.3,2653.0,2.17907988]
[1739184753823,3.76904,2653.2,2653.0,2.17907988]
[1739184754143,4.55937,2653.3,2653.0,2.17907988]
[1739184754454,3.76904,2653.2,2653.0,2.17907988]
[1739184755134,3.76917,2653.1,2653.0,2.17907988]
[1739184757032,3.0,2653.3,2653.0,2.17907988]
[1739184757245,3.76911,2653.2,2653.0,2.17907988]
[1739184757444,3.76917,2653.1,2653.0,2.17907988]
[1739184757762,3.76911,2653.2,2653.0,2.17907988]
[1739184757929,3.76911,2653.2,2653.0,2.25366153]
[1739184758552,3.0,2653.3,2653.0,2.25366153]
[1739184759270,3.0,2653.6,2653.1,3.76907]
[1739184759574,3.0,2653.6,2653.3,2.17907988]
[1739184759781,7.5368,2653.7,2653.3,2.17907988]
[1739184759927,3.0,2653.6,2653.4,0.07440503]
[1739184761836,6.76854,2653.6,2653.4,0.07440503]
[1739184762043,3.0,2653.6,2653.4,0.07440503]
[1739184762845,3.7686,2653.5,2653.4,0.07440503]
[1739184763457,6.7686,2653.5,2653.4,0.07440503]
[1739184770070,7.53482944,2653.5,2653.4,0.07440503]
[1739184771563,6.7686,2653.5,2653.4,0.07440503]
[1739184777266,3.76913,2653.2,2653.0,2.56219988]
[1739184777862,3.76913,2653.2,2653.0,2.17907988]
[1739184780576,3.76913,2653.2,2652.7,0.38312]
[1739184780577,3.76953,2652.9,2652.7,2.17907988]
[1739184782279,4.51385253,2653.0,2652.7,2.17907988]
[1739184783091,3.76921,2653.1,2652.7,2.17907988]
[1739184783289,3.76921,2653.1,2653.0,2.17907988]
[1739184784661,4.53361797,2653.2,2653.0,2.17907988]
[1739184784861,3.76917,2653.1,2653.0,2.17907988]
[1739184787893,3.76917,2653.1,2653.0,2.25421593]
[1739184788193,6.76917,2653.1,2653.0,0.07513605]
[1739184788557,3.76945,2653.0,2652.7,2.17907988]
[1739184789291,3.76959,2652.9,2652.7,2.17907988]
[1739184789664,3.0,2653.1,2652.7,2.17907988]
[1739184789870,3.76949,2652.9,2652.7,2.17907988]
[1739184791509,3.7696,2652.8,2652.7,2.17907988]
[1739184792666,3.76943,2653.0,2652.7,2.17907988]
[1739184792863,3.76949,2652.9,2652.7,2.17907988]
[1739184793879,3.7696,2652.8,2652.7,2.17907988]
[1739184794101,3.76949,2652.9,2652.7,2.17907988]
[1739184795302,3.7696,2652.8,2652.7,2.17907988]
[1739184796204,3.7696,2652.8,2652.4,2.17907988]
[1739184796205,3.76982,2652.7,2652.4,2.17907988]
[1739184796406,3.77001,2652.6,2652.4,2.17907988]
[1739184796701,4.52912,2652.5,2652.4,2.17907988]
[1739184796902,3.77039,2652.3,2652.1,2.56219988]
[1739184797213,3.77017,2652.4,2652.1,2.56219988]
[1739184797574,3.77045,2652.2,2652.1,2.56219988]
[1739184799016,3.77045,2652.2,2652.1,2.17907988]
[1739184799511,3.77021,2652.4,2652.1,2.17907988]
[1739184799721,6.77021,2652.4,2652.1,2.17907988]
[1739184800900,6.77021,2652.4,2652.2,0.07039199]
[1739184803582,3.7707174,2652.6,2652.2,0.07039199]
[1739184803806,3.0,2652.4,2652.2,0.07039199]
[1739184804217,3.76984,2652.7,2652.2,3.84083199]
[1739184804405,7.53966,2652.7,2652.4,2.17907988]
[1739184804601,3.0,2652.6,2652.4,2.17907988]
[1739184804804,3.0,2652.6,2652.5,0.07034654]
[1739184805188,6.76988,2652.6,2652.5,0.07034654]
[1739184805381,3.0,2652.6,2652.5,0.07034654]
[1739184806401,6.76988,2652.6,2652.5,0.07034654]
[1739184809744,4.51996583,2652.8,2652.5,0.07034654]
[1739184810026,3.0,2652.6,2652.5,0.07034654]
[1739184810231,3.76961,2652.8,2652.5,0.07034654]
[1739184810392,3.76988,2652.6,2652.5,0.07034654]
[1739184811229,3.76889,2653.3,2652.5,0.07034654]
[1739184811523,3.76903,2653.2,2653.1,2.17907988]
[1739184811712,3.76903,2653.2,2653.1,2.24938717]
[1739184811915,6.76903,2653.2,2653.1,2.24938717]
[1739184812628,6.76903,2653.2,2653.1,1.99938717]
[1739184814200,0.7591,2653.6,2653.1,1.99938717]
[1739184814522,4.52764,2653.6,2653.5,2.17907988]
[1739184814696,7.52764,2653.6,2653.5,2.24932662]
[1739184814896,7.52764,2653.6,2653.5,2.17907988]
[1739184815731,3.0,2653.3,2653.2,2.17907988]
[1739184815891,7.52763,2653.6,2653.2,2.24937203]
[1739184816233,3.0,2653.4,2653.2,2.17907988]
[1739184816726,3.0,2653.4,2653.3,0.07027701]
[1739184816895,3.0,2653.4,2653.2,2.17907988]
[1739184817095,3.0,2653.4,2653.3,0.06954182]
[1739184817296,6.76874,2653.4,2653.2,2.17907988]
[1739184817594,3.0,2653.4,2653.3,0.06954182]
[1739184818029,3.0,2653.4,2653.2,2.17907988]
[1739184818228,3.0,2653.4,2653.3,0.06954182]
[1739184818399,6.76874,2653.4,2653.3,0.06954182]
[1739184818600,6.76874,2653.4,2653.2,2.17907988]
[1739184818821,6.76874,2653.4,2653.3,0.06954182]
[1739184819192,6.76874,2653.4,2653.2,2.17907988]
[1739184819396,6.76874,2653.4,2653.3,0.06954182]
[1739184819830,6.76874,2653.4,2653.2,2.17907988]
[1739184820003,6.76874,2653.4,2653.3,0.06954182]
[1739184820426,3.76889,2653.3,2653.2,2.17907988]
[1739184820635,10.5376,2653.4,2653.2,2.17907988]
[1739184820820,3.76889,2653.3,2653.2,2.2461485]
[1739184821000,6.76874,2653.4,2653.2,2.2461485]
[1739184823701,3.0,2653.4,2653.2,2.2461485]
[1739184824013,3.76818,2653.8,2653.3,3.76881]
[1739184824213,3.76836,2653.7,2653.5,2.17907988]
[1739184824601,3.76836,2653.7,2653.6,0.06696945]
[1739184825130,3.76818,2653.8,2653.6,0.06696945]
[1739184826131,6.76797,2654.0,2653.6,0.06696945]
[1739184826132,10.536,2654.0,2653.6,0.06696945]
[1739184826313,10.536,2654.0,2653.9,2.17907988]
[1739184826512,10.536,2654.0,2653.9,2.24583656]
[1739184826712,10.536,2654.0,2653.9,2.17907988]
[1739184827553,3.76845,2653.7,2653.6,2.17907988]
[1739184827726,3.76845,2653.7,2653.6,2.24577255]
[1739184828742,3.0,2653.8,2653.6,2.24577255]
[1739184829045,3.76832,2653.7,2653.6,2.24577255]
[1739184830246,4.57972,2653.7,2653.6,0.06669267]
[1739184830433,7.57972,2653.7,2653.6,0.06669267]
[1739184830610,3.76874,2653.4,2653.3,2.17907988]
[1739184830988,6.76874,2653.4,2653.3,2.17907988]
[1739184831149,3.0,2653.3,2653.0,2.17907988]
[1739184831444,3.76903,2653.2,2653.0,2.17907988]
[1739184833025,6.76903,2653.2,2653.1,0.06673618]
[1739184834854,3.0,2653.2,2653.1,0.06673618]
[1739184835850,6.76903,2653.2,2653.1,0.06673618]
[1739184836057,3.0,2653.2,2653.1,0.06673618]
[1739184839861,6.76903,2653.2,2653.1,0.06673618]
[1739184840230,3.0,2653.2,2653.1,0.06673618]
[1739184840457,6.76903,2653.2,2653.1,0.06673618]
[1739184841065,7.59663,2653.2,2653.1,0.06673618]
[1739184842261,3.7696,2652.8,2652.7,2.17907988]
[1739184845739,6.7696,2652.8,2652.7,2.17907988]
[1739184847968,6.7696,2652.8,2652.7,2.2467329]
[1739184852389,3.77102,2651.8,2651.7,5.8336029]
[1739184852606,0.785,2652.6,2651.9,2.17907988]
[1739184852895,3.0,2652.3,2651.9,2.17907988]
[1739184853045,3.0,2652.3,2652.2,2.17907988]
[1739184858148,3.0,2652.3,2652.2,2.23308168]
[1739184860348,0.785,2652.8,2652.2,2.23308168]
[1739184860566,4.55439,2653.0,2652.6,2.17907988]
[1739184860864,3.0,2652.9,2652.7,0.0540678]
[1739184861068,3.74890133,2652.9,2652.7,0.0540678]
[1739184861444,7.51838133,2652.9,2652.7,0.0540678]
[1739184861713,6.7696,2652.8,2652.7,0.0540678]
[1739184861992,3.0,2652.7,2652.2,5.94948988]
[1739184862145,3.0,2652.7,2652.3,0.05412839]
[1739184862655,3.0,2652.7,2652.3,3.82441839]
[1739184863176,3.0,2652.8,2652.3,3.82441839]
[1739184863386,0.74890133,2652.9,2652.4,3.77014]
[1739184863543,0.785,2653.2,2652.7,3.76963]
[1739184863750,0.785,2653.2,2652.9,2.17907988]
[1739184864077,0.785,2653.2,2653.0,0.0538291]
[1739184864298,4.5537,2653.5,2653.0,0.0538291]
[1739184864805,3.0,2653.3,2653.0,0.0538291]
[1739184866377,3.76876,2653.4,2653.0,0.0538291]
[1739184867127,3.0,2653.3,2653.0,0.0538291]
[1739184867296,3.76903,2653.2,2653.0,0.0538291]
[1739184867627,3.0,2653.3,2653.0,0.0538291]
[1739184867922,3.76907,2653.2,2653.0,0.0538291]
[1739184871116,0.7589,2653.1,2653.0,0.0538291]
[1739184871517,7.52807,2653.1,2653.0,0.0538291]
[1739184872029,3.7589,2653.1,2653.0,0.0538291]
[1739184873085,7.52807,2653.1,2653.0,0.0538291]
[1739184873498,3.7589,2653.1,2653.0,0.0538291]
[1739184873727,3.0,2653.1,2653.0,0.0538291]
[1739184875979,3.76839,2653.7,2653.1,3.7691]
[1739184876245,3.76839,2653.7,2653.3,2.17907988]
[1739184876650,3.0,2653.6,2653.4,0.05295699]
[1739184876922,6.7686,2653.5,2653.4,0.05295699]
[1739184877143,6.76885,2653.4,2653.0,7.42907988]
[1739184877344,6.76885,2653.4,2653.1,0.0530024]
[1739184877345,3.76903,2653.2,2653.1,0.0530024]
[1739184877751,6.76903,2653.2,2653.1,0.0530024]
[1739184881719,3.0,2653.2,2653.1,0.0530024]
[1739184881918,3.0,2653.1,2652.8,3.76957]
[1739184882123,3.0,2653.2,2652.9,0.05289104]
[1739184882322,3.0,2653.3,2653.0,2.17907988]
[1739184882561,3.76863,2653.5,2653.1,0.0527899]
[1739184882727,3.76839,2653.7,2653.3,2.17907988]
[1739184882923,3.76839,2653.7,2653.4,0.05289901]
[1739184883124,6.76853,2653.6,2653.4,0.05289901]
[1739184883433,7.52146247,2653.6,2653.4,0.05289901]
[1739184884347,0.75293247,2653.6,2653.4,0.05289901]
[1739184884725,3.76828,2653.8,2653.4,0.05289901]
[1739184885451,0.74244047,2653.7,2653.4,0.05289901]
[1739184885644,3.0,2653.6,2653.4,0.05289901]
[1739184887155,4.51080047,2653.7,2653.4,0.05289901]
[1739184887156,6.7686,2653.5,2653.4,0.05289901]
[1739184887342,7.5275,2653.5,2653.4,0.05289901]
[1739184887727,3.0,2653.4,2653.0,2.17907988]
[1739184888049,6.76885,2653.4,2653.1,0.05294442]
[1739184888844,3.0,2653.4,2653.1,0.05294442]
[1739184889038,6.76903,2653.2,2653.1,0.05294442]
[1739184889438,3.0,2653.1,2652.9,5.25]
[1739184889632,3.0,2653.1,2652.7,2.17907988]
[1739184889920,3.0,2653.1,2652.7,5.94880988]
[1739184890124,3.76903,2653.2,2652.8,3.76952]
[1739184890125,3.0,2653.2,2652.8,3.76952]
[1739184890324,6.76908,2653.2,2652.7,5.94880988]
[1739184891361,3.76918,2653.1,2652.7,2.17907988]
[1739184891679,3.0,2653.2,2652.7,2.17907988]
[1739184891988,3.0,2653.2,2652.7,5.94879988]
[1739184892152,6.76904,2653.2,2652.7,5.94879988]
[1739184892948,3.0,2653.2,2652.8,0.05110649]
[1739184893155,6.76915,2653.2,2652.7,5.94879988]
[1739184893355,6.76915,2653.2,2652.8,0.05110649]